bitfinex/quotes_BTCUSD_20241021
["timestamp","ask_amount","ask_price","bid_price","bid_amount"]
[1729502987429,0.27410804,68360.0,68359.0,0.00241638]
[1729502987430,0.28076283,68360.0,68359.0,0.00241638]
[1729502987664,0.28076283,68360.0,68359.0,0.00041638]
[1729502987880,0.28076283,68360.0,68359.0,0.00151638]
[1729502988140,0.28076283,68360.0,68358.0,0.174728]
[1729502988141,0.269286,68359.0,68358.0,0.174728]
[1729502988362,0.27411004,68359.0,68358.0,0.174628]
[1729502988587,0.27411004,68359.0,68358.0,0.17614438]
[1729502988808,0.269286,68359.0,68358.0,0.20330054]
[1729502989294,0.169286,68359.0,68358.0,0.20330054]
[1729502989537,0.00665479,68360.0,68359.0,0.01151638]
[1729502989761,0.00647876,68360.0,68359.0,0.18901638]
[1729502990664,0.00747876,68360.0,68359.0,0.20301638]
[1729502991610,0.00747876,68360.0,68359.0,0.24171352]
[1729502991844,0.15376276,68360.0,68359.0,0.27099352]
[1729502992057,0.15376276,68360.0,68359.0,0.26999352]
[1729502992282,0.15476276,68360.0,68359.0,0.28399352]
[1729502992511,0.15476276,68360.0,68359.0,0.39425553]
[1729502992512,0.00847876,68360.0,68359.0,0.39425553]
[1729502992725,0.00747876,68360.0,68359.0,0.38125553]
[1729502992994,0.169279,68363.0,68362.0,0.03579638]
[1729502993217,0.169279,68363.0,68362.0,0.22549638]
[1729502993670,0.146279,68363.0,68362.0,0.37445553]
[1729502993897,0.392527,68370.0,68369.0,0.20784079]
[1729502993898,0.561792,68370.0,68369.0,0.20784079]
[1729502994359,0.561792,68370.0,68369.0,0.20935717]
[1729502995051,0.56661604,68370.0,68369.0,0.21368]
[1729502995962,0.56761604,68370.0,68369.0,0.22768]
[1729502996400,0.5716254,68370.0,68369.0,0.22768]
[1729502996945,0.5742473,68370.0,68369.0,0.22768]
[1729502997641,0.5759033,68370.0,68369.0,0.22768]
[1729502999437,0.62129812,68370.0,68369.0,0.22768]
[1729502999856,0.5759033,68370.0,68369.0,0.22768]
[1729503000066,0.62129825,68370.0,68369.0,0.22768]
[1729503000295,0.5759033,68370.0,68369.0,0.22768]
[1729503000753,0.62130316,68370.0,68369.0,0.22768]
[1729503000979,0.62130316,68370.0,68369.0,0.05528]
[1729503000980,0.5759033,68370.0,68369.0,0.05528]
[1729503001204,0.5759033,68370.0,68369.0,0.026]
[1729503001205,0.6213013,68370.0,68369.0,0.026]
[1729503001630,0.6203013,68370.0,68369.0,0.012]
[1729503001853,0.123,68369.0,68361.0,0.02928]
[1729503002069,0.26928,68362.0,68361.0,0.02928]
[1729503002313,0.27410604,68361.0,68360.0,0.02928]
[1729503003434,0.269284,68360.0,68359.0,0.000828]
[1729503004103,0.31469743,68360.0,68359.0,0.000828]
[1729503004565,0.31952147,68360.0,68359.0,0.000828]
[1729503005228,0.32052147,68360.0,68359.0,0.014828]
[1729503005713,0.31952147,68360.0,68359.0,0.000828]
[1729503005911,0.31952147,68360.0,68359.0,0.009828]
[1729503006156,0.32052147,68360.0,68359.0,0.021828]
[1729503009343,0.32052147,68360.0,68359.0,0.012828]
[1729503009593,0.32217747,68360.0,68359.0,0.021828]
[1729503010029,0.32217747,68360.0,68359.0,0.012828]
[1729503010243,0.32217747,68360.0,68359.0,0.020828]
[1729503010673,0.32217747,68360.0,68359.0,0.105728]
[1729503010887,0.27676404,68360.0,68359.0,0.105728]
[1729503011108,0.27576404,68360.0,68359.0,0.093728]
[1729503011348,0.27676404,68360.0,68359.0,0.106728]
[1729503011775,0.27576404,68360.0,68359.0,0.093728]
[1729503012023,0.3211938,68360.0,68359.0,0.100728]
[1729503012229,0.3221938,68360.0,68359.0,0.111728]
[1729503012493,0.3221938,68360.0,68359.0,0.19760517]
[1729503012494,0.102656,68360.0,68359.0,0.19760517]
[1729503012709,0.102656,68360.0,68359.0,0.22688517]
[1729503013372,0.002656,68360.0,68359.0,0.37317117]
[1729503013861,0.002656,68360.0,68359.0,0.21988517]
[1729503013862,0.14894,68360.0,68359.0,0.21988517]
[1729503014085,0.14794,68360.0,68359.0,0.20888517]
[1729503014309,0.14794,68360.0,68359.0,0.22288517]
[1729503014772,0.14794,68360.0,68359.0,0.20888517]
[1729503014996,0.14794,68360.0,68359.0,0.17308879]
[1729503015227,0.14794,68360.0,68359.0,0.197928]
[1729503015228,0.17094,68360.0,68359.0,0.197928]
[1729503017562,0.17094,68360.0,68359.0,0.026828]
[1729503017563,0.17745815,68360.0,68359.0,0.026828]
[1729503018708,0.17745815,68360.0,68359.0,0.012828]
[1729503018955,0.32771297,68360.0,68359.0,0.012828]
[1729503019171,0.32771297,68360.0,68359.0,0.014828]
[1729503019402,0.32771297,68360.0,68359.0,0.026828]
[1729503019643,0.32771297,68360.0,68359.0,0.014828]
[1729503020110,0.32771297,68360.0,68359.0,0.025828]
[1729503020331,0.32771297,68360.0,68359.0,0.000828]
[1729503020779,0.32771297,68360.0,68359.0,0.014828]
[1729503021867,0.32771297,68360.0,68359.0,0.024828]
[1729503022081,0.32771297,68360.0,68359.0,0.014828]
[1729503022544,0.32771297,68360.0,68359.0,0.123328]
[1729503022971,0.32771297,68360.0,68359.0,0.112328]
[1729503023179,0.22288893,68360.0,68359.0,0.122328]
[1729503023427,0.00817415,68360.0,68359.0,0.20570517]
[1729503023636,0.15445815,68360.0,68359.0,0.21098517]
[1729503023850,0.001656,68360.0,68359.0,0.21098517]
[1729503024056,0.00824293,68360.0,68359.0,0.22398517]
[1729503024477,0.001656,68360.0,68359.0,0.21098517]
[1729503024726,0.14794,68360.0,68359.0,0.21098517]
[1729503024932,0.14894,68360.0,68359.0,0.23598517]
[1729503025145,0.17853167,68360.0,68359.0,0.23598517]
[1729503025370,0.17853167,68360.0,68359.0,0.22498517]
[1729503025594,0.17853167,68360.0,68359.0,0.22346879]
[1729503025813,0.17753167,68360.0,68359.0,0.22146879]
[1729503026039,0.17753167,68360.0,68359.0,0.20946879]
[1729503026454,0.17753167,68360.0,68359.0,0.22146879]
[1729503026823,0.17753167,68360.0,68359.0,0.20946879]
[1729503027177,0.17753167,68360.0,68359.0,0.22246879]
[1729503027381,0.17753167,68360.0,68359.0,0.216308]
[1729503027583,0.17753167,68360.0,68359.0,0.203308]
[1729503027998,0.17753167,68360.0,68359.0,0.187028]
[1729503028235,0.17753167,68360.0,68359.0,0.199028]
[1729503028453,0.17753167,68360.0,68359.0,0.186028]
[1729503028659,0.17753167,68360.0,68359.0,0.187028]
[1729503028865,0.17753167,68360.0,68359.0,0.199028]
[1729503029292,0.17753167,68360.0,68359.0,0.187028]
[1729503029715,0.17753167,68360.0,68359.0,0.199028]
[1729503030775,0.17588375,68360.0,68359.0,0.199028]
[1729503030981,0.17753312,68360.0,68359.0,0.199028]
[1729503032347,0.17753312,68360.0,68359.0,0.187028]
[1729503032760,0.17753312,68360.0,68359.0,0.199028]
[1729503033007,0.17753312,68360.0,68359.0,0.187028]
[1729503033228,0.17753312,68360.0,68359.0,0.174028]
[1729503033450,0.17753312,68360.0,68359.0,0.186028]
[1729503034030,0.17753312,68360.0,68359.0,0.199028]
[1729503034598,0.17753312,68360.0,68359.0,0.186028]
[1729503035024,0.17753312,68360.0,68359.0,0.199028]
[1729503035228,0.17753312,68360.0,68359.0,0.228308]
[1729503035427,0.17753312,68360.0,68359.0,0.199028]
[1729503036787,0.17753312,68360.0,68359.0,0.123328]
[1729503037000,0.22300633,68360.0,68359.0,0.012828]
[1729503037184,0.22300633,68360.0,68359.0,0.026828]
[1729503037617,0.22300633,68360.0,68359.0,0.012828]
[1729503037618,0.43838061,68360.0,68359.0,0.012828]
[1729503038080,0.32783037,68360.0,68359.0,0.025828]
[1729503038306,0.32783037,68360.0,68359.0,0.013828]
[1729503038981,0.32783037,68360.0,68359.0,0.025828]
[1729503039211,0.32783037,68360.0,68359.0,0.000828]
[1729503039437,0.32123725,68360.0,68359.0,0.008828]
[1729503039684,0.32123725,68360.0,68359.0,0.018828]
[1729503041091,0.32123725,68360.0,68359.0,0.117728]
[1729503042667,0.32123725,68360.0,68359.0,0.107728]
[1729503042876,0.32123725,68360.0,68359.0,0.099728]
[1729503043083,0.32123725,68360.0,68359.0,0.110728]
[1729503043319,0.32123725,68360.0,68359.0,0.117728]
[1729503043553,0.32123725,68360.0,68359.0,0.099728]
[1729503044013,0.32123725,68360.0,68359.0,0.112728]
[1729503050512,0.31641321,68360.0,68359.0,0.112728]
[1729503050955,0.32123725,68360.0,68359.0,0.112728]
[1729503051990,0.31641321,68360.0,68359.0,0.117728]
[1729503052883,0.27094,68360.0,68359.0,0.117728]
[1729503053319,0.27576404,68360.0,68359.0,0.117728]
[1729503053518,0.27094,68360.0,68359.0,0.117728]
[1729503055903,0.27576404,68360.0,68359.0,0.117728]
[1729503056581,0.27576404,68360.0,68359.0,0.013828]
[1729503056582,0.39110764,68360.0,68359.0,0.013828]
[1729503056864,0.32127011,68360.0,68359.0,0.013828]
[1729503059251,0.29827011,68360.0,68359.0,0.018828]
[1729503060175,0.29827011,68360.0,68359.0,0.013828]
[1729503060626,0.32127011,68360.0,68359.0,0.013828]
[1729503061322,0.32127011,68360.0,68359.0,0.008828]
[1729503061784,0.32127011,68360.0,68359.0,0.000828]
[1729503062005,0.32127011,68360.0,68359.0,0.008828]
[1729503062228,0.32127011,68360.0,68359.0,0.012828]
[1729503062439,0.32127011,68360.0,68359.0,0.004828]
[1729503062863,0.32127011,68360.0,68359.0,0.007828]
[1729503063585,0.32127011,68360.0,68359.0,0.003828]
[1729503064244,0.32127011,68360.0,68359.0,0.000828]
[1729503064485,0.32227011,68360.0,68359.0,0.000828]
[1729503064706,0.32627011,68360.0,68359.0,0.000828]
[1729503064930,0.32527011,68360.0,68359.0,0.000828]
[1729503065350,0.32727011,68360.0,68359.0,0.000828]
[1729503070405,0.32127011,68360.0,68359.0,0.000828]
[1729503070862,0.32127011,68360.0,68359.0,0.009828]
[1729503071315,0.32127011,68360.0,68359.0,0.000828]
[1729503071316,2.82127011,68360.0,68359.0,0.000828]
[1729503071527,2.82127011,68360.0,68359.0,0.002828]
[1729503071737,2.97022926,68360.0,68359.0,0.008828]
[1729503071944,2.97022926,68360.0,68359.0,0.006828]
[1729503072148,2.82127011,68360.0,68359.0,0.006828]
[1729503073448,2.82127011,68360.0,68359.0,0.000828]
[1729503073869,2.82127011,68360.0,68359.0,0.005828]
[1729503074079,2.82127011,68360.0,68359.0,0.008828]
[1729503075202,2.82127011,68360.0,68359.0,0.005828]
[1729503075437,2.82127011,68360.0,68359.0,0.007828]
[1729503076825,2.82127011,68360.0,68359.0,0.005828]
[1729503077072,2.82127011,68360.0,68359.0,0.000828]
[1729503077311,2.82127011,68360.0,68359.0,0.004828]
[1729503077765,2.82127011,68360.0,68359.0,0.000828]
[1729503077766,2.82227011,68360.0,68359.0,0.000828]
[1729503078228,2.82227011,68360.0,68359.0,0.002828]
[1729503081305,2.82227011,68360.0,68359.0,0.00434438]
[1729503081771,2.81744607,68360.0,68359.0,0.17254438]
[1729503081976,2.82227011,68360.0,68359.0,0.171028]
[1729503082497,2.81744607,68360.0,68359.0,0.176028]
[1729503082710,2.82227011,68360.0,68359.0,0.176028]
[1729503083351,2.82227011,68360.0,68359.0,0.171028]
[1729503083621,2.82227011,68360.0,68359.0,0.096028]
[1729503084926,2.81744607,68360.0,68359.0,0.19827751]
[1729503085141,2.77194,68360.0,68359.0,0.19979389]
[1729503085379,2.77194,68360.0,68359.0,0.18150517]
[1729503085808,2.77194,68360.0,68359.0,0.17950517]
[1729503086307,2.77194,68360.0,68359.0,0.19350517]
[1729503086520,2.77094,68360.0,68359.0,0.19350517]
[1729503086734,2.77094,68360.0,68359.0,0.18750517]
[1729503086964,2.77094,68360.0,68359.0,0.19850517]
[1729503088070,2.77094,68360.0,68359.0,0.19050517]
[1729503088495,2.77094,68360.0,68359.0,0.18650517]
[1729503089025,2.77094,68360.0,68359.0,0.19550517]
[1729503092861,2.77094,68360.0,68359.0,0.18650517]
[1729503093340,2.77094,68360.0,68359.0,0.18950517]
[1729503094356,2.77094,68360.0,68359.0,0.19498879]
[1729503094609,2.77094,68360.0,68359.0,0.18498879]
[1729503094865,2.77094,68360.0,68359.0,0.19398879]
[1729503095095,2.77094,68360.0,68359.0,0.18698879]
[1729503095557,2.77094,68360.0,68359.0,0.19498879]
[1729503097039,2.77094,68360.0,68359.0,0.18698879]
[1729503097523,2.77094,68360.0,68359.0,0.19298879]
[1729503099448,2.77094,68360.0,68359.0,0.11018879]
[1729503099706,2.77094,68360.0,68359.0,0.01698879]
[1729503099960,2.81644482,68360.0,68359.0,0.015828]
[1729503100732,2.82126886,68360.0,68359.0,0.015828]
[1729503101454,0.32126886,68360.0,68359.0,0.006828]
[1729503101698,0.32126886,68360.0,68359.0,0.015828]
[1729503102170,0.32126886,68360.0,68359.0,0.009828]
[1729503102638,0.32126886,68360.0,68359.0,0.000828]
[1729503103627,0.32226886,68360.0,68359.0,0.000828]
[1729503104103,0.32226886,68360.0,68359.0,0.001828]
[1729503104379,0.32826886,68360.0,68359.0,0.001828]
[1729503105064,0.33426886,68360.0,68359.0,0.002828]
[1729503112744,0.48322801,68360.0,68359.0,0.002828]
[1729503113218,0.57731163,68360.0,68359.0,0.002828]
[1729503114819,0.57731163,68360.0,68344.0,0.000827]
[1729503114820,0.27413404,68348.0,68344.0,0.000827]
[1729503115047,0.35336034,68348.0,68344.0,0.000827]
[1729503115291,0.50280311,68348.0,68344.0,0.000827]
[1729503115756,0.71795601,68348.0,68344.0,0.000827]
[1729503115980,0.56825901,68348.0,68344.0,0.000827]
[1729503116238,0.50280311,68348.0,68344.0,0.000827]
[1729503116489,0.61180267,68348.0,68344.0,0.000827]
[1729503117419,0.27415504,68338.0,68337.0,0.00228]
[1729503117640,0.49971419,68338.0,68337.0,0.00228]
[1729503117867,0.54508371,68338.0,68337.0,0.00228]
[1729503118094,0.46848371,68338.0,68337.0,0.00228]
[1729503118328,0.48209502,68338.0,68337.0,0.00228]
[1729503118604,0.48743509,68338.0,68337.0,0.00228]
[1729503118829,0.484055,68338.0,68337.0,0.00328]
[1729503119286,0.49765921,68338.0,68337.0,0.00328]
[1729503119504,0.57425921,68338.0,68337.0,0.00328]
[1729503119741,0.57383303,68338.0,68337.0,0.00328]
[1729503120217,0.57983303,68338.0,68337.0,0.00428]
[1729503120464,0.146378,68316.0,68315.0,0.005]
[1729503120685,0.146378,68316.0,68315.0,0.00616079]
[1729503120686,0.169378,68316.0,68315.0,0.00616079]
[1729503121193,0.16999431,68316.0,68315.0,0.00616079]
[1729503121672,0.16999431,68316.0,68315.0,0.00651638]
[1729503121673,0.17710863,68316.0,68315.0,0.00651638]
[1729503121903,0.17710863,68316.0,68315.0,0.01651638]
[1729503121904,0.17910863,68316.0,68315.0,0.01651638]
[1729503122132,0.17910863,68316.0,68315.0,0.01767717]
[1729503122356,0.17810863,68316.0,68315.0,0.01467717]
[1729503122812,0.17810863,68316.0,68315.0,0.01]
[1729503123030,0.17710863,68316.0,68315.0,0.003]
[1729503123260,0.17710863,68316.0,68315.0,0.00451638]
[1729503123533,0.28193267,68316.0,68315.0,0.007]
[1729503123759,0.43089182,68316.0,68315.0,0.007]
[1729503124273,0.55120545,68316.0,68315.0,0.007]
[1729503124519,0.55120545,68316.0,68303.0,0.00151638]
[1729503124520,0.023,68307.0,68303.0,0.00151638]
[1729503124741,0.169404,68304.0,68303.0,0.00151638]
[1729503125218,0.1765553,68304.0,68303.0,0.00151638]
[1729503126099,0.1775553,68304.0,68303.0,0.00151638]
[1729503127072,0.169412,68300.0,68299.0,0.17967717]
[1729503127562,0.1765633,68300.0,68299.0,0.17967717]
[1729503128261,0.1765633,68300.0,68299.0,0.18267717]
[1729503128927,0.1765633,68300.0,68299.0,0.18767717]
[1729503129187,0.1765633,68300.0,68299.0,0.18467717]
[1729503129631,0.1765633,68300.0,68299.0,0.179]
[1729503129840,0.1765633,68300.0,68299.0,0.18051638]
[1729503130059,0.1765633,68300.0,68299.0,0.17551638]
[1729503130313,0.1765633,68300.0,68299.0,0.17951638]
[1729503130742,0.1765633,68300.0,68299.0,0.17551638]
[1729503131001,0.1765633,68300.0,68299.0,0.17851638]
[1729503131002,0.2765633,68300.0,68299.0,0.17851638]
[1729503131204,0.2765633,68300.0,68299.0,0.18267717]
[1729503131416,0.2765633,68300.0,68299.0,0.18367717]
[1729503131629,0.2765633,68300.0,68299.0,0.17751638]
[1729503131854,0.2765633,68300.0,68299.0,0.176]
[1729503132084,0.32354634,68300.0,68299.0,0.176]
[1729503132294,0.2765633,68300.0,68299.0,0.18251638]
[1729503132722,0.2765633,68300.0,68299.0,0.18367717]
[1729503134665,0.27698876,68300.0,68299.0,0.18367717]
[1729503135133,0.27698876,68300.0,68299.0,0.18450517]
[1729503135367,0.27698876,68300.0,68299.0,0.18298879]
[1729503135611,0.27698876,68300.0,68299.0,0.17798879]
[1729503136086,0.27698876,68300.0,68299.0,0.176828]
[1729503136564,0.29991347,68300.0,68299.0,0.004828]
[1729503136824,0.34757974,68300.0,68299.0,0.004828]
[1729503137268,0.29991347,68300.0,68299.0,0.004828]
[1729503141031,0.68746293,68300.0,68299.0,1e-06]
[1729503141262,0.023,68281.0,68278.0,0.000828]
[1729503141530,0.27338104,68279.0,68278.0,0.000828]
[1729503141840,0.27338104,68279.0,68261.0,0.00192038]
[1729503141841,0.25130304,68269.0,68261.0,0.000404]
[1729503142031,0.25130904,68266.0,68261.0,0.000404]
[1729503142251,0.40016819,68266.0,68261.0,0.000404]
[1729503142518,0.52393446,68266.0,68261.0,0.000404]
[1729503142754,0.52393446,68266.0,68255.0,0.025]
[1729503142755,0.246507,68256.0,68255.0,0.01654941]
[1729503142975,0.246507,68256.0,68255.0,0.02422658]
[1729503142976,0.1,68256.0,68255.0,0.02422658]
[1729503143225,0.0999,68256.0,68255.0,0.02422658]
[1729503143452,0.099,68256.0,68255.0,0.02422658]
[1729503143667,0.023,68256.0,68255.0,0.02422658]
[1729503143908,0.146494,68262.0,68261.0,0.005]
[1729503144148,0.17321804,68262.0,68261.0,0.005]
[1729503144376,0.17241804,68262.0,68261.0,0.005]
[1729503144638,0.17331404,68264.0,68263.0,0.005]
[1729503144898,0.023,68264.0,68263.0,0.00767717]
[1729503145138,0.23823652,68269.0,68268.0,0.00767717]
[1729503145370,0.38793956,68269.0,68268.0,0.00767717]
[1729503145576,0.48793956,68269.0,68268.0,0.00767717]
[1729503145815,0.27230304,68269.0,68268.0,0.00616079]
[1729503146469,0.27230304,68269.0,68268.0,0.00698879]
[1729503146920,0.27230304,68269.0,68268.0,0.00850517]
[1729503148025,0.27430304,68269.0,68268.0,0.00850517]
[1729503148505,0.27230304,68269.0,68268.0,0.00850517]
[1729503148718,0.27230304,68269.0,68268.0,0.00198879]
[1729503148719,0.27430304,68269.0,68268.0,0.00198879]
[1729503148965,0.27230304,68269.0,68268.0,0.000828]
[1729503149399,0.27430304,68269.0,68268.0,0.000828]
[1729503150780,0.27230304,68269.0,68268.0,0.000828]
[1729503151260,0.27430304,68269.0,68268.0,0.000828]
[1729503151483,0.27230304,68269.0,68268.0,0.00234438]
[1729503151700,0.27430304,68269.0,68268.0,0.00234438]
[1729503151913,0.17430304,68269.0,68268.0,0.00734438]
[1729503152133,0.17230304,68269.0,68268.0,0.01751569]
[1729503152375,0.17430304,68269.0,68268.0,0.01751569]
[1729503152828,0.17230304,68269.0,68268.0,0.00850517]
[1729503153772,0.17230304,68269.0,68268.0,0.10400517]
[1729503153990,0.17430304,68269.0,68268.0,0.10400517]
[1729503154453,0.17230304,68269.0,68268.0,0.10400517]
[1729503154701,0.17530304,68269.0,68268.0,0.10400517]
[1729503154926,0.17230304,68269.0,68268.0,0.10400517]
[1729503155152,0.168479,68269.0,68268.0,0.12256569]
[1729503155386,0.0009975,68277.0,68276.0,0.00616079]
[1729503155616,0.0009975,68277.0,68276.0,0.15262479]
[1729503155860,0.21563652,68285.0,68276.0,0.19902327]
[1729503156131,0.15027104,68284.0,68283.0,0.00116079]
[1729503156846,0.146449,68283.0,68282.0,0.00116079]
[1729503157088,0.15027304,68283.0,68282.0,0.00116079]
[1729503157562,0.146449,68283.0,68282.0,0.00267717]
[1729503158038,0.146449,68283.0,68276.0,0.19786248]
[1729503158039,0.146442,68286.0,68285.0,0.00767717]
[1729503159715,0.146442,68286.0,68285.0,0.01067717]
[1729503160205,0.146442,68286.0,68285.0,0.00767717]
[1729503160660,0.146442,68286.0,68285.0,0.01067717]
[1729503161124,0.169442,68286.0,68285.0,0.01067717]
[1729503161390,0.169442,68286.0,68285.0,0.003]
[1729503161628,0.31840115,68286.0,68285.0,0.004]
[1729503161857,0.32222519,68286.0,68285.0,0.003]
[1729503162083,0.32222519,68286.0,68285.0,0.001]
[1729503162314,0.023,68285.0,68274.0,0.00151638]
[1729503162556,0.169466,68275.0,68274.0,0.00151638]
[1729503163248,0.169466,68275.0,68273.0,0.00151638]
[1729503163249,0.169468,68274.0,68273.0,0.00151638]
[1729503163478,0.146472,68272.0,68271.0,0.00444372]
[1729503163701,0.169472,68272.0,68271.0,0.00444372]
[1729503165440,0.169472,68272.0,68268.0,0.000828]
[1729503165441,0.023,68272.0,68270.0,0.00444372]
[1729503165685,0.169477,68270.0,68269.0,0.00328293]
[1729503165925,0.169479,68269.0,68268.0,0.000828]
[1729503167088,0.38511552,68269.0,68268.0,0.000828]
[1729503167324,0.169479,68269.0,68268.0,0.000828]
[1729503168044,0.17330304,68269.0,68268.0,0.000828]
[1729503168772,0.17430304,68269.0,68268.0,0.009828]
[1729503168997,0.17330304,68269.0,68268.0,0.004828]
[1729503169228,0.17730304,68269.0,68268.0,0.004828]
[1729503169473,0.17730304,68269.0,68268.0,0.000828]
[1729503169711,0.17330304,68269.0,68268.0,0.000828]
[1729503169940,0.17930304,68269.0,68268.0,0.000828]
[1729503170167,0.17330304,68269.0,68268.0,0.000828]
[1729503170683,0.15230304,68269.0,68268.0,0.00527172]
[1729503170916,0.15230304,68269.0,68268.0,0.00198879]
[1729503171889,0.17330304,68269.0,68268.0,0.00198879]
[1729503172134,0.17530304,68269.0,68268.0,0.00198879]
[1729503172360,0.17930304,68269.0,68268.0,0.000828]
[1729503172589,0.17330304,68269.0,68268.0,0.000828]
[1729503173139,0.17330304,68269.0,68268.0,0.08967172]
[1729503173572,0.17330304,68269.0,68268.0,0.00927172]
[1729503173810,0.17330304,68269.0,68268.0,0.01723889]
[1729503174040,0.17330304,68269.0,68268.0,0.00927172]
[1729503174787,0.17330304,68269.0,68268.0,0.00627172]
[1729503175010,0.27330304,68269.0,68268.0,0.00511093]
[1729503175246,0.27330304,68269.0,68268.0,0.00811093]
[1729503175484,0.27330304,68269.0,68268.0,0.003828]
[1729503175722,0.27330304,68269.0,68268.0,0.001828]
[1729503176431,0.27430304,68269.0,68268.0,0.000828]
[1729503176666,0.27330304,68269.0,68268.0,0.000828]
[1729503177415,0.27330304,68269.0,68268.0,0.002828]
[1729503178530,0.27330304,68269.0,68268.0,0.000828]
[1729503178756,0.27530304,68269.0,68268.0,0.000828]
[1729503179196,0.27330304,68269.0,68268.0,0.000828]
[1729503179481,0.27430304,68269.0,68268.0,0.000828]
[1729503179680,0.27430304,68269.0,68268.0,0.09941093]
[1729503180125,0.174479,68269.0,68268.0,0.10057172]
[1729503180610,0.17730304,68269.0,68268.0,0.10057172]
[1729503180891,0.17730304,68269.0,68268.0,0.47461187]
[1729503180892,0.004,68269.0,68268.0,0.47461187]
[1729503181093,0.004,68269.0,68268.0,0.33313087]
[1729503181309,0.004,68269.0,68268.0,0.17917172]
[1729503181532,0.004,68269.0,68268.0,0.19820649]
[1729503181533,0.150479,68269.0,68268.0,0.19820649]
[1729503181776,0.146479,68269.0,68268.0,0.17917172]
[1729503182244,0.173479,68269.0,68268.0,0.17917172]
[1729503182476,0.004,68269.0,68268.0,0.17917172]
[1729503182696,0.462425,68271.0,68270.0,0.00116079]
[1729503183395,0.169475,68271.0,68270.0,0.00116079]
[1729503183628,0.169475,68271.0,68270.0,0.00444372]
[1729503185260,0.169475,68271.0,68270.0,0.01444372]
[1729503185487,0.17329904,68271.0,68270.0,0.006]
[1729503185715,0.17330104,68270.0,68269.0,0.00328293]
[1729503186930,0.17430104,68270.0,68269.0,0.00928293]
[1729503187510,0.17430104,68270.0,68269.0,0.006]
[1729503187735,0.17430104,68270.0,68269.0,0.00928293]
[1729503187985,0.38993756,68270.0,68269.0,0.006]
[1729503188233,0.169479,68269.0,68268.0,0.000828]
[1729503188736,0.38893956,68269.0,68268.0,0.000828]
[1729503188953,0.17330304,68269.0,68268.0,0.000828]
[1729503189454,0.38893956,68269.0,68268.0,0.000828]
[1729503189687,0.72101578,68269.0,68268.0,0.000828]
[1729503189916,0.77739307,68269.0,68268.0,0.000828]
[1729503190135,0.76548661,68269.0,68268.0,0.000828]
[1729503190379,0.74168424,68269.0,68268.0,0.000828]
[1729503190864,0.65455655,68269.0,68268.0,0.000828]
[1729503191113,0.56175655,68269.0,68268.0,0.000828]
[1729503191350,2.06175655,68269.0,68268.0,0.000828]
[1729503191577,2.06275655,68269.0,68268.0,0.000828]
[1729503191829,2.14888695,68269.0,68268.0,0.000828]
[1729503192050,2.11558195,68269.0,68268.0,0.000828]
[1729503192278,2.06475655,68269.0,68268.0,0.000828]
[1729503192492,2.14109733,68269.0,68268.0,0.001828]
[1729503192754,2.15509733,68269.0,68268.0,0.002828]
[1729503192980,2.1530864,68269.0,68268.0,0.002828]
[1729503193413,2.08775655,68269.0,68268.0,0.002828]
[1729503194167,2.2367157,68269.0,68268.0,0.002828]
[1729503194388,2.30204555,68269.0,68268.0,0.002828]
[1729503194620,2.08775655,68269.0,68268.0,0.002828]
[1729503195342,2.10137638,68269.0,68268.0,0.002828]
[1729503195570,2.06351373,68269.0,68268.0,0.002828]
[1729503195791,2.06351461,68269.0,68268.0,0.002828]
[1729503196273,2.01997638,68269.0,68268.0,0.002828]
[1729503196747,0.23630016,68269.0,68268.0,0.002828]
[1729503197227,0.17730304,68269.0,68268.0,0.00611093]
[1729503197714,0.16430304,68269.0,68268.0,0.00511093]
[1729503198178,0.26430304,68269.0,68268.0,0.00511093]
[1729503198408,0.31492198,68269.0,68268.0,0.00611093]
[1729503198637,0.28730304,68269.0,68268.0,0.00511093]
[1729503198868,0.2889218,68269.0,68268.0,0.00411093]
[1729503199092,0.2929218,68269.0,68268.0,0.00411093]
[1729503199330,0.65551747,68269.0,68268.0,0.000828]
[1729503199579,0.48628017,68269.0,68268.0,0.000828]
[1729503199810,0.48628017,68269.0,68268.0,0.001828]
[1729503199811,0.49928017,68269.0,68268.0,0.001828]
[1729503200339,0.35032053,68269.0,68268.0,0.001828]
[1729503200817,0.35932053,68269.0,68268.0,0.002828]
[1729503201282,0.35032053,68269.0,68268.0,0.001828]
[1729503201525,0.36232053,68269.0,68268.0,0.002828]
[1729503201764,0.36485587,68269.0,68268.0,0.002828]
[1729503201990,0.34685587,68269.0,68268.0,0.001828]
[1729503202216,0.30292131,68269.0,68268.0,0.001828]
[1729503202458,0.34833015,68269.0,68268.0,0.001828]
[1729503202673,0.34433015,68269.0,68268.0,0.001828]
[1729503202855,0.35833015,68269.0,68268.0,0.002828]
[1729503203782,0.31292131,68269.0,68268.0,0.002828]
[1729503204011,0.35832983,68269.0,68268.0,0.002828]
[1729503204928,0.57396635,68269.0,68268.0,0.002828]
[1729503205200,0.34471156,68269.0,68268.0,0.002828]
[1729503205435,0.3583302,68269.0,68268.0,0.002828]
[1729503205674,0.34471156,68269.0,68268.0,0.002828]
[1729503205903,0.50728934,68269.0,68268.0,0.002828]
[1729503206653,0.50900641,68269.0,68268.0,0.002828]
[1729503207105,0.51900641,68269.0,68268.0,0.002828]
[1729503207337,2.01900641,68269.0,68268.0,0.002828]
[1729503207575,2.08430284,68269.0,68268.0,0.002828]
[1729503208311,2.18776832,68269.0,68268.0,0.002828]
[1729503209221,2.17414969,68269.0,68268.0,0.002828]
[1729503209442,2.10070382,68269.0,68268.0,0.002828]
[1729503209668,0.60070382,68269.0,68268.0,0.002828]
[1729503210387,0.68787731,68269.0,68268.0,0.002828]
[1729503210615,0.60070382,68269.0,68268.0,0.002828]
[1729503210847,0.81634034,68269.0,68268.0,0.002828]
[1729503211076,0.60070382,68269.0,68268.0,0.002828]
[1729503212720,0.58708778,68269.0,68268.0,0.002828]
[1729503213178,0.60070814,68269.0,68268.0,0.002828]
[1729503214618,0.6878833,68269.0,68268.0,0.002828]
[1729503214848,0.68788325,68269.0,68268.0,0.002828]
[1729503215312,0.60618325,68269.0,68268.0,0.002828]
[1729503216286,0.7551424,68269.0,68268.0,0.002828]
[1729503216541,0.75515618,68269.0,68268.0,0.002828]
[1729503216793,0.66798107,68269.0,68268.0,0.002828]
[1729503217038,0.51902192,68269.0,68268.0,0.002828]
[1729503217284,0.6279908,68269.0,68268.0,0.002828]
[1729503218266,0.51902192,68269.0,68268.0,0.002828]